bitfinex-derivatives/quotes_BNBF0:USTF0_20250524
["timestamp","ask_amount","ask_price","bid_price","bid_amount"]
[1748107767648,0.29647637,674.59,674.48,0.5022402]
[1748107768346,0.29647637,674.59,674.49,0.5022402]
[1748107769953,0.29647637,674.59,674.5,0.5022402]
[1748107771454,0.29647637,674.59,674.36,0.5022402]
[1748107773054,0.29647637,674.59,674.37,0.5022402]
[1748107774457,0.29647637,674.59,674.38,0.5022402]
[1748107775656,0.29647637,674.59,674.39,0.5022402]
[1748107776856,0.29647637,674.59,674.4,0.5022402]
[1748107778056,0.29647637,674.59,674.41,0.5022402]
[1748107779159,0.29647637,674.59,674.42,0.5022402]
[1748107780560,0.29647637,674.59,674.43,0.5022402]
[1748107781658,0.29647637,674.59,674.44,0.5022402]
[1748107782759,0.29647637,674.59,674.45,0.5022402]
[1748107783959,0.29647637,674.59,674.46,0.5022402]
[1748107785661,0.29647637,674.59,674.47,0.5022402]
[1748107786562,0.29647637,674.59,674.48,0.5022402]
[1748107787862,0.29647637,674.59,674.32,0.53211706]
[1748107787863,0.29647637,674.59,674.49,0.5022402]
[1748107788663,0.29647637,674.59,674.5,0.5022402]
[1748107789966,0.29647637,674.59,674.51,0.5022402]
[1748107790766,0.29647637,674.59,674.43,0.5022402]
[1748107791968,0.29647637,674.59,674.44,0.5022402]
[1748107792763,0.29647637,674.59,674.45,0.5022402]
[1748107794470,0.29647637,674.59,674.46,0.5022402]
[1748107795371,0.29647637,674.59,674.47,0.5022402]
[1748107796369,0.29647637,674.59,674.48,0.5022402]
[1748107797271,0.29647637,674.59,674.49,0.5022402]
[1748107798475,0.29647637,674.59,674.5,0.5022402]
[1748107799873,0.29647637,674.59,674.51,0.5022402]
[1748107801076,0.29647637,674.59,674.52,0.5022402]
[1748107802577,0.29647637,674.59,674.53,0.5022402]
[1748107804279,0.29647637,674.59,674.54,0.5022402]
[1748107805576,0.29647637,674.59,674.55,0.5022402]
[1748107807280,0.29647637,674.59,674.56,0.5022402]
[1748107808573,0.29647637,674.59,674.57,0.5022402]
[1748107810084,0.29647637,674.59,674.42,0.469]
[1748107810883,0.29647637,674.59,674.43,0.50239019]
[1748107812085,0.29647637,674.59,674.44,0.50239019]
[1748107813688,0.29647637,674.59,674.45,0.50239019]
[1748107814787,0.29647637,674.59,674.46,0.50239019]
[1748107816089,0.29647637,674.59,674.47,0.50239019]
[1748107817991,0.29647637,674.59,674.48,0.50239019]
[1748107819393,0.29647637,674.59,674.49,0.50239019]
[1748107820986,0.29647637,674.59,674.5,0.50239019]
[1748107822387,0.29647637,674.59,674.51,0.50239019]
[1748107823892,0.29647637,674.59,674.52,0.50239019]
[1748107825293,0.29647637,674.59,674.53,0.50239019]
[1748107826695,0.29647637,674.59,674.54,0.50239019]
[1748107827895,0.29647637,674.59,674.55,0.50239019]
[1748107829396,0.29647637,674.59,674.56,0.50239019]
[1748107830499,0.29647637,674.59,674.57,0.50239019]
[1748107831496,0.29647637,674.59,674.58,0.50239019]
[1748107835802,0.29647637,674.59,674.27,0.53211706]
[1748107837303,0.29647637,674.59,674.28,0.50138791]
[1748107838399,0.29647637,674.59,674.29,0.50138791]
[1748107839705,0.29647637,674.59,674.3,0.50138791]
[1748107840805,0.29647637,674.59,674.31,0.50138791]
[1748107842203,0.29647637,674.59,674.32,0.50138791]
[1748107843708,0.29647637,674.59,674.33,0.50138791]
[1748107845010,0.29647637,674.59,674.34,0.50138791]
[1748107846307,0.29647637,674.59,674.35,0.50138791]
[1748107847906,0.29647637,674.59,674.36,0.50138791]
[1748107848812,0.29647637,674.59,674.37,0.50138791]
[1748107850112,0.29647637,674.59,674.38,0.50138791]
[1748107850912,0.29647637,674.59,674.39,0.50138791]
[1748107852610,0.29647637,674.59,674.4,0.50138791]
[1748107853818,0.29647637,674.59,674.41,0.50138791]
[1748107855216,0.29647637,674.59,674.42,0.50138791]
[1748107856617,0.29647637,674.59,674.17,0.53211706]
[1748107857613,0.29647637,674.59,674.18,0.50090552]
[1748107858923,0.29647637,674.59,674.19,0.50090552]
[1748107860627,0.29647637,674.59,674.2,0.50090552]
[1748107862027,0.29647637,674.59,674.21,0.50090552]
[1748107863730,0.29647637,674.59,674.22,0.50090552]
[1748107864627,0.29647637,674.59,674.23,0.50090552]
[1748107866235,0.29647637,674.59,674.24,0.50090552]
[1748107867234,0.29647637,674.59,674.25,0.50090552]
[1748107868336,0.29647637,674.59,674.26,0.50090552]
[1748107869437,0.29647637,674.59,674.27,0.50090552]
[1748107871339,0.29647637,674.59,674.28,0.50090552]
[1748107872835,0.29647637,674.59,674.29,0.50090552]
[1748107874739,0.29647637,674.59,674.3,0.50090552]
[1748107876143,0.29647637,674.59,674.31,0.50090552]
[1748107877443,0.29647637,674.59,674.32,0.50090552]
[1748107878250,0.29647637,674.59,674.33,0.50090552]
[1748107880148,0.29647637,674.59,674.34,0.50090552]
[1748107881248,0.29647637,674.59,674.35,0.50090552]
[1748107882949,0.29647637,674.59,674.36,0.50090552]
[1748107884054,0.29647637,674.59,674.37,0.50090552]
[1748107885357,0.29647637,674.59,674.38,0.50090552]
[1748107886157,0.29647637,674.59,674.39,0.50090552]
[1748107887658,0.29647637,674.59,674.4,0.50090552]
[1748107889357,0.29647637,674.59,674.41,0.50090552]
[1748107890854,0.29647637,674.59,674.42,0.50090552]
[1748107892259,0.29647637,674.59,674.43,0.50090552]
[1748107893158,0.29647637,674.59,674.44,0.50090552]
[1748107894661,0.29647637,674.59,674.23,0.50090552]
[1748107896359,0.29647637,674.59,674.22,0.424]
[1748107910872,0.29647637,674.59,674.23,0.49882946]
[1748107912372,0.29647637,674.59,674.22,0.424]
[1748107914472,0.29647637,674.59,673.89,0.53211706]
[1748107915475,0.29647637,674.59,673.9,0.49854238]
[1748107916678,0.29647637,674.59,673.91,1.03065944]
[1748107917873,0.29647637,674.59,673.92,0.49854238]
[1748107918079,0.29647637,674.59,673.92,1.08154238]
[1748107919579,0.29647637,674.59,673.93,0.49854238]
[1748107920880,0.29647637,674.59,673.94,0.49854238]
[1748107922583,0.29647637,674.59,673.95,0.49854238]
[1748107923283,0.29647637,674.59,673.96,0.49854238]
[1748107924684,0.29647637,674.59,673.97,0.49854238]
[1748107925886,0.29647637,674.59,673.98,0.49854238]
[1748107926890,0.29647637,674.59,673.99,0.49854238]
[1748107928283,0.29647637,674.59,674.0,0.49854238]
[1748107929488,0.29647637,674.59,674.01,0.49854238]
[1748107930585,0.29647637,674.59,674.02,0.49854238]
[1748107932587,0.29647637,674.59,673.92,0.583]
[1748107932588,0.29647637,674.59,674.03,0.49854238]
[1748107933394,0.29647637,674.59,673.97,0.53211706]
[1748107933395,0.29647637,674.59,674.04,0.49854238]
[1748107934391,0.29647637,674.59,674.05,0.49854238]
[1748107935395,0.29647637,674.59,674.06,0.49854238]
[1748107937195,0.29647637,674.59,674.07,0.49854238]
[1748107938396,0.29647637,674.59,674.08,0.49854238]
[1748107939701,0.29647637,674.59,674.0,0.53211706]
[1748107939702,0.29647637,674.59,674.09,0.49854238]
[1748107940697,0.29647637,674.59,674.1,0.49854238]
[1748107941994,0.29647637,674.59,674.11,0.49854238]
[1748107942900,0.29647637,674.59,674.12,0.49854238]
[1748107944403,0.29647637,674.59,674.13,0.49854238]
[1748107944805,0.29647637,674.59,674.14,0.5]
[1748107945802,0.29647637,674.59,674.15,0.49854238]
[1748107947105,0.29647637,674.59,674.16,0.49854238]
[1748107948106,0.29647637,674.59,674.17,0.49854238]
[1748107949509,0.29647637,674.59,674.18,0.49854238]
[1748107951514,0.29647637,674.59,674.19,0.49854238]
[1748107952714,0.29647637,674.59,674.2,0.49854238]
[1748107953817,0.29647637,674.59,674.21,0.49854238]
[1748107955316,0.29647637,674.59,674.22,0.49854238]
[1748107956618,0.29647637,674.59,674.23,0.49854238]
[1748107958621,0.29647637,674.59,674.24,0.49854238]
[1748107960021,0.29647637,674.59,674.25,0.49854238]
[1748107961419,0.29647637,674.59,674.26,0.49854238]
[1748107962521,0.29647637,674.59,674.27,0.49854238]
[1748107963619,0.29647637,674.59,674.28,0.497]
[1748107964222,0.29647637,674.59,674.29,0.49854238]
[1748107965325,0.29647637,674.59,674.3,0.49854238]
[1748107966323,0.29647637,674.59,674.31,0.49854238]
[1748107967623,0.29647637,674.59,674.32,0.49854238]
[1748107968919,0.29647637,674.59,674.29,0.49854238]
[1748107987642,0.29647637,674.59,674.3,0.49854238]
[1748107988850,0.29647637,674.59,674.31,0.49854238]
[1748107990351,0.29647637,674.59,674.32,0.49854238]
[1748107991452,0.29647637,674.59,674.33,0.49854238]
[1748107993051,0.29647637,674.59,674.34,0.49854238]
[1748107993953,0.29647637,674.59,674.32,0.49854238]
[1748107994851,0.29647637,674.59,674.33,0.49854238]
[1748107996054,0.29647637,674.59,674.34,0.49854238]
[1748107997855,0.29647637,674.59,674.35,0.49854238]
[1748107999152,0.29647637,674.59,674.31,0.594]
[1748107999153,0.29647637,674.59,674.32,0.49854238]
[1748108000356,0.29647637,674.59,674.33,0.49854238]
[1748108001854,0.29647637,674.59,674.34,0.49854238]
[1748108003054,0.29647637,674.59,674.35,0.49854238]
[1748108004162,0.29647637,674.59,674.36,0.49854238]
[1748108005961,0.29647637,674.59,674.37,0.49854238]
[1748108007158,0.29647637,674.59,674.38,0.49854238]
[1748108009161,0.29647637,674.59,674.39,0.49854238]
[1748108010266,0.29647637,674.59,674.4,0.49854238]
[1748108011363,0.29647637,674.59,674.16,0.53211706]
[1748108011364,0.29647637,674.59,674.41,0.49854238]
[1748108012163,0.29647637,674.59,674.42,0.49854238]
[1748108012768,0.29647637,674.59,674.42,0.90054238]
[1748108013370,0.29647637,674.59,674.43,0.49854238]
[1748108014570,0.29647637,674.59,674.44,0.49854238]
[1748108016067,0.29647637,674.59,674.45,0.49854238]
[1748108016671,0.29647637,674.59,674.46,0.49854238]
[1748108017971,0.29647637,674.59,674.43,0.49854238]
[1748108018969,0.29647637,674.59,674.44,0.49854238]
[1748108019976,0.29647637,674.59,674.45,0.49854238]
[1748108021374,0.29647637,674.59,674.43,0.49854238]
[1748108022880,0.29647637,674.59,674.44,0.49854238]
[1748108023376,0.29647637,674.59,674.45,0.49854238]
[1748108024574,0.29647637,674.59,674.43,0.49854238]
[1748108025879,0.29647637,674.59,674.44,0.49854238]
[1748108027373,0.29647637,674.59,674.43,0.49854238]
[1748108028377,0.29647637,674.59,674.44,0.49854238]
[1748108029479,0.29647637,674.59,674.43,0.49854238]
[1748108030880,0.29647637,674.59,674.44,0.49854238]
[1748108032384,0.29647637,674.59,674.43,0.49854238]
[1748108033878,0.29647637,674.59,674.44,0.49854238]
[1748108035683,0.29647637,674.59,674.43,0.49854238]
[1748108036883,0.29647637,674.59,674.44,0.49854238]
[1748108038488,0.29647637,674.59,674.43,0.49854238]
[1748108040891,0.29647637,674.59,674.44,0.49854238]
[1748108042291,0.29647637,674.59,674.43,0.49854238]
[1748108044089,0.29647637,674.59,674.44,0.49854238]
[1748108045493,0.29647637,674.59,674.45,0.49854238]
[1748108046791,0.29647637,674.59,674.43,0.49854238]
[1748108047697,0.29647637,674.59,674.44,0.49854238]
[1748108048597,0.29647637,674.59,674.45,0.49854238]
[1748108049400,0.29647637,674.59,674.46,0.49854238]
[1748108050500,0.29647637,674.59,674.43,0.49854238]
[1748108051804,0.29647637,674.59,674.44,0.49854238]
[1748108052804,0.29647637,674.59,674.45,0.49854238]
[1748108054205,0.29647637,674.59,674.46,0.49854238]
[1748108055607,0.29647637,674.59,674.47,0.49854238]
[1748108056910,0.29647637,674.59,674.48,0.49854238]
[1748108058305,0.29647637,674.59,674.49,0.49854238]
[1748108059107,0.29647637,674.59,674.5,0.49854238]
[1748108060209,0.29647637,674.59,674.51,0.49854238]
[1748108061511,0.29647637,674.59,674.43,0.49854238]
[1748108063012,0.29647637,674.59,674.44,0.49854238]
[1748108064915,0.29647637,674.59,674.45,0.49854238]
[1748108066113,0.29647637,674.59,674.46,0.49854238]
[1748108067414,0.29647637,674.59,674.43,0.49854238]
[1748108069016,0.29647637,674.59,674.42,0.402]
[1748108069017,0.29647637,674.59,674.44,0.49854238]
[1748108070316,0.29647637,674.59,674.45,0.49854238]
[1748108071419,0.29647637,674.59,674.46,0.49854238]
[1748108072515,0.29647637,674.59,674.47,0.49854238]
[1748108074417,0.29647637,674.59,674.48,0.49854238]
[1748108075615,0.29647637,674.59,674.49,0.49854238]
[1748108077021,0.29647637,674.59,674.5,0.49854238]
[1748108078423,0.29647637,674.59,674.51,0.49854238]
[1748108080027,0.29647637,674.59,674.42,0.402]
[1748108081029,0.29647637,674.59,674.43,0.49806553]
[1748108082422,0.29647637,674.59,674.44,0.49806553]
[1748108083426,0.29647637,674.59,674.45,0.49806553]
[1748108084829,0.29647637,674.59,674.46,0.49806553]
[1748108086133,0.29647637,674.59,674.47,0.49806553]
[1748108086825,0.29647637,674.59,674.48,0.49806553]
[1748108088332,0.29647637,674.59,674.49,0.49806553]
[1748108089435,0.29647637,674.59,674.5,0.49806553]
[1748108090033,0.29647637,674.59,674.51,0.49806553]
[1748108091435,0.29647637,674.59,674.52,0.49806553]
[1748108092832,0.29647637,674.59,674.42,0.402]
[1748108093937,0.29647637,674.59,674.43,0.49791198]
[1748108095140,0.29647637,674.59,674.44,0.49791198]
[1748108096442,0.29647637,674.59,674.43,0.49791198]
[1748108097842,0.29647637,674.59,674.44,0.49791198]
[1748108099445,0.29647637,674.59,674.43,0.49791198]
[1748108103845,0.29647637,674.59,674.44,0.49791198]
[1748108105546,0.29647637,674.59,674.45,0.49791198]
[1748108106346,0.29647637,674.59,674.43,0.49791198]
[1748108107542,0.29647637,674.59,674.44,0.49791198]
[1748108108746,0.29647637,674.59,674.45,0.49791198]
[1748108109748,0.29647637,674.59,674.46,0.49791198]
[1748108111447,0.29647637,674.59,674.47,0.49791198]
[1748108113149,0.29647637,674.59,674.48,0.49791198]
[1748108115250,0.29647637,674.59,674.42,0.402]
[1748108115251,0.29647637,674.59,674.49,0.49791198]
[1748108116548,0.29647637,674.59,674.5,0.49791198]
[1748108117954,0.29647637,674.59,674.51,0.49791198]
[1748108119251,0.29647637,674.59,674.52,0.49791198]
[1748108120258,0.29647637,674.59,674.53,0.49791198]
[1748108122157,0.29647637,674.59,674.54,0.49791198]
[1748108123759,0.29647637,674.59,674.55,0.49791198]
[1748108124762,0.29647637,674.59,674.56,0.49791198]
[1748108126264,0.29647637,674.59,674.57,0.49791198]
[1748108127467,0.29647637,674.59,674.58,0.49791198]
[1748108146580,3.69579782,675.59,674.58,0.49791198]
[1748108146780,0.25781406,675.48,674.58,0.49791198]
[1748108146980,0.29609451,675.46,674.58,0.49791198]
[1748108147580,0.29609451,675.46,674.59,0.49791198]
[1748108149482,0.29609451,675.46,674.6,0.49791198]
[1748108150484,0.29609451,675.46,674.61,0.512]
[1748108150779,0.29609451,675.46,674.62,0.49791198]
[1748108151885,0.29609451,675.46,674.61,0.512]
[1748108151886,0.29609451,675.46,674.63,0.49791198]
[1748108153387,0.29609451,675.46,674.64,0.49791198]
[1748108155390,0.29609451,675.46,674.65,0.49791198]
[1748108156892,0.29609451,675.46,674.66,0.49791198]
[1748108158394,0.29609451,675.46,674.69,0.53211706]
[1748108159195,0.29609451,675.46,674.7,0.49791198]
[1748108160299,0.29609451,675.46,674.71,0.49791198]
[1748108160998,0.29609451,675.46,674.72,0.49791198]
[1748108162202,0.29609451,675.46,674.74,0.53211706]
[1748108163601,0.29609451,675.46,674.75,0.49791198]
[1748108165100,0.29609451,675.46,674.76,0.49791198]
[1748108166197,0.29609451,675.46,674.77,0.49791198]
[1748108167501,0.29609451,675.46,674.78,0.49791198]
[1748108168705,0.29609451,675.46,674.79,0.49791198]
[1748108170199,0.29609451,675.46,674.8,0.49791198]
[1748108171304,0.29609451,675.46,674.81,0.49791198]
[1748108173102,0.29609451,675.46,674.84,0.53211706]
[1748108174206,0.29609451,675.46,674.85,0.49791198]
[1748108175507,0.29609451,675.46,674.89,0.53211706]
[1748108176506,0.29609451,675.46,674.9,0.49791198]
[1748108177507,0.29609451,675.46,674.91,0.49791198]
[1748108179109,0.29609451,675.46,674.92,0.49791198]
[1748108180314,0.29609451,675.46,674.93,0.49791198]
[1748108181810,0.29609451,675.46,674.94,0.49791198]
[1748108183012,0.29609451,675.46,674.95,0.49791198]
[1748108184212,0.29609451,675.46,674.96,0.49791198]
[1748108185822,0.29609451,675.46,674.97,0.49791198]
[1748108186715,0.29609451,675.46,674.98,0.49791198]
[1748108188022,0.29609451,675.46,674.99,0.49791198]
[1748108189124,0.29609451,675.46,675.0,0.49791198]
[1748108190926,0.29609451,675.46,675.01,0.49791198]
[1748108192028,0.29609451,675.46,675.02,0.49791198]
[1748108194130,0.29609451,675.46,675.03,0.49791198]
[1748108195329,0.29609451,675.46,675.04,0.49791198]
[1748108197029,0.29609451,675.46,675.05,0.49791198]
[1748108197826,0.29609451,675.46,675.06,0.49791198]
[1748108199033,0.29609451,675.46,675.07,0.49791198]
[1748108200136,0.29609451,675.46,675.08,0.49791198]
[1748108201140,0.29609451,675.46,675.09,0.49791198]
[1748108202337,0.29609451,675.46,675.04,0.53211706]
[1748108202338,0.29609451,675.46,675.1,0.49791198]
[1748108203738,0.29609451,675.46,675.11,0.49791198]
[1748108204837,0.29609451,675.46,675.12,0.49791198]
[1748108206038,0.29609451,675.46,675.13,0.49791198]
[1748108207139,0.29609451,675.46,675.14,0.49791198]
[1748108208432,0.29609451,675.46,675.15,0.49791198]
[1748108209839,0.29609451,675.46,675.16,0.49791198]
[1748108210140,0.29609451,675.46,675.17,0.561]
[1748108210841,0.29609451,675.46,675.18,0.49791198]
[1748108212040,0.29609451,675.46,675.19,0.49791198]
[1748108213543,0.29609451,675.46,675.2,0.49791198]
[1748108214839,0.29609451,675.46,675.21,0.49791198]
[1748108216446,0.29609451,675.46,675.22,0.49791198]
[1748108217745,0.29609451,675.46,675.23,0.49791198]
[1748108219147,0.29609451,675.46,675.24,0.49791198]
[1748108220046,0.29609451,675.46,675.25,0.49791198]
[1748108221249,0.29609451,675.46,675.17,0.561]
[1748108221250,0.29609451,675.46,675.26,0.49791198]
[1748108222751,0.29609451,675.46,675.27,0.49791198]
[1748108224456,0.29609451,675.46,675.28,0.49791198]
[1748108225554,0.29609451,675.46,675.29,0.49791198]
[1748108226955,0.29609451,675.46,675.3,0.49791198]
[1748108227754,0.29609451,675.46,675.31,0.49791198]
[1748108228056,0.25758793,675.99,675.31,0.49791198]
[1748108228255,0.29586674,675.98,675.31,0.49791198]
[1748108228956,0.29586674,675.98,675.32,0.49791198]
[1748108230455,0.29586674,675.98,675.33,0.49791198]
[1748108231656,0.29586674,675.98,675.34,0.49791198]
[1748108232556,0.29586674,675.98,675.35,0.49791198]
[1748108233655,0.29586674,675.98,675.36,0.49791198]
[1748108234555,0.29586674,675.98,675.37,0.49791198]
[1748108236056,0.29586674,675.98,675.38,0.49791198]
[1748108237257,0.29586674,675.98,675.39,0.49791198]
[1748108238361,0.29586674,675.98,675.4,0.49791198]
[1748108239659,0.29586674,675.98,675.41,0.49791198]
[1748108241154,0.29586674,675.98,675.42,0.49791198]
[1748108242053,0.29586674,675.98,675.43,0.49791198]
[1748108243362,0.29586674,675.98,675.44,0.49791198]
[1748108244655,0.29586674,675.98,675.45,0.49791198]
[1748108246362,0.29586674,675.98,675.46,0.49791198]
[1748108247263,0.29586674,675.98,675.47,0.49791198]
[1748108248866,0.29586674,675.98,675.48,0.49791198]
[1748108250066,0.29586674,675.98,675.49,0.49791198]
[1748108251069,0.29586674,675.98,675.5,0.49791198]
[1748108252770,0.29586674,675.98,675.51,0.49791198]
[1748108253471,0.29586674,675.98,675.18,0.7096262]
[1748108253472,0.29586674,675.98,675.52,0.49791198]
[1748108254172,0.29586674,675.98,675.53,0.49791198]
[1748108255575,0.29586674,675.98,675.54,0.49791198]
[1748108256272,0.29586674,675.98,675.55,0.49791198]
[1748108256573,0.29586674,675.98,675.56,0.541]
[1748108257675,0.29586674,675.98,675.57,0.49791198]
[1748108258777,0.29586674,675.98,675.58,0.49791198]
[1748108259873,0.29586674,675.98,675.59,0.49791198]
[1748108260673,0.29586674,675.98,675.6,0.49791198]
[1748108262076,0.29586674,675.98,675.61,0.49791198]
[1748108263076,0.29586674,675.98,675.62,0.49791198]
[1748108264072,0.29586674,675.98,675.63,0.49791198]
[1748108265378,0.29586674,675.98,675.56,0.541]
[1748108266879,0.29586674,675.98,675.57,0.49521509]
[1748108267979,0.29586674,675.98,675.58,0.49521509]
[1748108269381,0.29586674,675.98,675.59,0.49521509]
[1748108270183,0.29586674,675.98,675.6,0.49521509]
[1748108271585,0.29586674,675.98,675.61,0.49521509]
[1748108272786,0.29586674,675.98,675.62,0.49521509]
[1748108273884,0.29586674,675.98,675.63,0.49521509]
[1748108275088,0.29586674,675.98,675.56,0.541]
[1748108276688,0.29586674,675.98,675.57,0.49511693]
[1748108278185,0.29586674,675.98,675.58,0.49511693]
[1748108279790,0.29586674,675.98,675.59,0.49511693]
[1748108281390,0.29586674,675.98,675.57,0.49511693]
[1748108282390,0.29586674,675.98,675.58,0.49511693]
[1748108283291,0.29586674,675.98,675.59,0.49511693]
[1748108283992,0.29586674,675.98,675.57,0.49511693]
[1748108285389,0.29586674,675.98,675.58,0.49511693]
[1748108286594,0.29586674,675.98,675.59,0.49511693]
[1748108288394,0.29586674,675.98,675.6,0.49511693]
[1748108289595,0.29586674,675.98,675.61,0.49511693]
[1748108290597,0.29586674,675.98,675.62,0.49511693]
[1748108291694,0.29586674,675.98,675.63,0.49511693]
[1748108291895,0.29586674,675.98,675.63,0.90911693]
[1748108293200,0.29586674,675.98,675.64,0.49511693]
[1748108294592,0.29586674,675.98,675.65,0.49511693]
[1748108296298,0.29586674,675.98,675.66,0.49511693]
[1748108297698,0.29586674,675.98,675.67,0.49511693]
[1748108298800,0.29586674,675.98,675.68,0.49511693]
[1748108300105,0.29586674,675.98,675.69,0.49511693]
[1748108301900,0.29586674,675.98,675.7,0.49511693]
[1748108302798,0.29586674,675.98,675.71,0.49511693]
[1748108304507,0.29586674,675.98,675.72,0.49511693]
[1748108305502,0.29586674,675.98,675.73,0.49511693]
[1748108307108,0.29586674,675.98,675.74,0.49511693]
[1748108308209,0.29586674,675.98,675.75,0.49511693]
[1748108309408,0.29586674,675.98,675.76,0.49511693]
[1748108311212,0.29586674,675.98,675.77,0.49511693]
[1748108312914,0.29586674,675.98,675.78,0.49511693]
[1748108314013,0.29586674,675.98,675.64,0.49511693]
[1748108315314,0.29586674,675.98,675.65,0.49511693]
[1748108316813,0.29586674,675.98,675.66,0.49511693]
[1748108318317,0.29586674,675.98,675.67,0.49511693]
[1748108319516,0.29586674,675.98,675.68,0.49511693]
[1748108320817,0.29586674,675.98,675.69,0.49511693]
[1748108322021,0.29586674,675.98,675.7,0.49511693]
[1748108323622,0.29586674,675.98,675.71,0.49511693]
[1748108324520,0.29586674,675.98,675.72,0.49511693]
[1748108325720,0.29586674,675.98,675.73,0.49511693]
[1748108326821,0.29586674,675.98,675.74,0.49511693]
[1748108328422,0.29586674,675.98,675.75,0.49511693]
[1748108329327,0.29586674,675.98,675.76,0.49511693]
[1748108330828,0.29586674,675.98,675.77,0.49511693]
[1748108331928,0.29586674,675.98,675.78,0.49511693]
[1748108333223,0.29586674,675.98,675.79,0.49511693]
[1748108334327,0.29586674,675.98,675.8,0.49511693]
[1748108335826,0.29586674,675.98,675.81,0.49511693]
[1748108337131,0.29586674,675.98,675.68,0.49511693]
[1748108338532,0.29586674,675.98,675.69,0.49511693]
[1748108339630,0.29586674,675.98,675.7,0.49511693]
[1748108340532,0.29586674,675.98,675.71,0.49511693]
[1748108341829,0.29586674,675.98,675.72,0.49511693]
[1748108342937,0.29586674,675.98,675.73,0.49511693]
[1748108344441,0.29586674,675.98,675.74,0.49511693]
[1748108345637,0.29586674,675.98,675.75,0.49511693]
[1748108347037,0.29586674,675.98,675.52,0.49511693]
[1748108348339,0.29586674,675.98,675.57,0.53211706]
[1748108349532,0.29586674,675.98,675.58,0.49511693]
[1748108349738,0.29586674,675.98,675.58,1.03311693]
[1748108350937,0.29586674,675.98,675.59,0.49511693]
[1748108352239,0.29586674,675.98,675.6,0.49511693]
[1748108353840,0.29586674,675.98,675.61,0.49511693]
[1748108354641,0.29586674,675.98,675.62,0.49511693]
[1748108356237,0.29586674,675.98,675.63,0.49511693]
[1748108357441,0.29586674,675.98,675.64,0.49511693]
[1748108358844,0.29586674,675.98,675.65,0.49511693]
[1748108360546,0.29586674,675.98,675.66,0.49511693]
[1748108361748,0.29586674,675.98,675.67,0.49511693]
[1748108362450,0.29586674,675.98,675.68,0.49511693]
[1748108363849,0.29586674,675.98,675.69,0.49511693]
[1748108364951,0.29586674,675.98,675.7,0.49511693]
[1748108365951,0.29586674,675.98,675.59,0.49511693]
[1748108366947,0.29586674,675.98,675.6,0.49511693]
[1748108368257,0.29586674,675.98,675.61,0.49511693]
[1748108369050,0.29586674,675.98,675.62,0.49511693]
[1748108370154,0.29586674,675.98,675.63,0.49511693]
[1748108371550,0.29586674,675.98,675.64,0.49511693]
[1748108373255,0.29586674,675.98,675.65,0.49511693]
[1748108374456,0.29586674,675.98,675.66,0.49511693]
[1748108375752,0.29586674,675.98,675.59,0.49511693]
[1748108376657,0.29586674,675.98,675.6,0.49511693]
[1748108378563,0.29586674,675.98,675.61,0.49511693]
[1748108379561,0.29586674,675.98,675.62,0.49511693]
[1748108380661,0.29586674,675.98,675.63,0.49511693]
[1748108381860,0.29586674,675.98,675.59,0.49511693]
[1748108383163,0.29586674,675.98,675.6,0.49511693]
[1748108384462,0.29586674,675.98,675.61,0.49511693]
[1748108386063,0.29586674,675.98,675.62,0.49511693]
[1748108387364,0.29586674,675.98,675.63,0.49511693]
[1748108388865,0.29586674,675.98,675.64,0.49511693]
[1748108389866,0.29586674,675.98,675.65,0.49511693]
[1748108391861,0.29586674,675.98,675.66,0.49511693]
[1748108392867,0.29586674,675.98,675.67,0.49511693]
[1748108393867,0.29586674,675.98,675.68,0.49511693]
[1748108394968,0.29586674,675.98,675.69,0.49511693]
[1748108396161,0.29586674,675.98,675.7,0.49511693]
[1748108397368,0.29586674,675.98,675.71,0.49511693]
[1748108398767,0.29586674,675.98,675.72,0.49511693]
[1748108399870,0.29586674,675.98,675.73,0.49511693]
[1748108401372,0.29586674,675.98,675.74,0.49511693]
[1748108402572,0.29586674,675.98,675.75,0.49511693]
[1748108403975,0.29586674,675.98,675.76,0.49511693]
[1748108404871,0.29586674,675.98,675.77,0.49511693]
[1748108406466,0.29586674,675.98,675.78,0.49511693]
[1748108406772,0.29586674,675.98,675.78,1.01211693]
[1748108407571,0.29586674,675.98,675.79,0.49511693]
[1748108409072,0.29586674,675.98,675.8,0.49511693]
[1748108410472,0.29586674,675.98,675.81,0.49511693]
[1748108411267,0.29586674,675.98,675.82,0.49511693]
[1748108412273,0.29586674,675.98,675.83,0.49511693]
[1748108414574,0.29586674,675.98,675.84,0.49511693]
[1748108416174,0.29586674,675.98,675.85,0.49511693]
[1748108417977,0.29586674,675.98,675.78,0.517]
[1748108418677,0.29586674,675.98,675.56,0.53211706]
[1748108419277,0.29586674,675.98,675.57,0.50796918]
[1748108420779,0.29586674,675.98,675.58,1.04008624]
[1748108421876,0.29586674,675.98,675.59,0.37]
[1748108422174,0.29586674,675.98,675.59,0.87796918]
[1748108422980,0.29586674,675.98,675.6,0.50796918]
[1748108424176,0.29586674,675.98,675.61,0.50796918]
[1748108425681,0.29586674,675.98,675.62,0.50796918]
[1748108427181,0.29586674,675.98,675.63,0.50796918]
[1748108428683,0.29586674,675.98,675.64,0.50796918]
[1748108429887,0.29586674,675.98,675.65,0.50796918]
[1748108430683,0.29586674,675.98,675.66,0.50796918]